bitfinex/quotes_SOLUSD_20250818
["timestamp","ask_amount","ask_price","bid_price","bid_amount"]
[1755548971295,1e-08,183.8,183.77,25.58158458]
[1755548972512,1e-08,183.8,183.77,30.58654785]
[1755548972673,1e-08,183.8,183.79,5.71496327]
[1755548972993,1e-08,183.8,183.78,6.42496327]
[1755548973494,1e-08,183.8,183.79,5.71496327]
[1755548974476,1e-08,183.8,183.79,11.1559557]
[1755548974891,1e-08,183.8,183.79,11.8659557]
[1755548975297,1e-08,183.8,183.79,31.2659557]
[1755548975678,1e-08,183.8,183.79,46.37217127]
[1755548976707,0.06,183.82,183.81,15.10621557]
[1755548976996,0.06,183.82,183.81,58.94117884]
[1755548977200,0.06,183.82,183.81,79.05117883]
[1755548978592,0.06,183.82,183.81,84.49157924]
[1755548979370,1e-08,183.82,183.81,110.49157924]
[1755548988345,0.06,183.84,183.83,60.50621555]
[1755548988616,0.06,183.84,183.83,104.34117882]
[1755548989820,0.06,183.84,183.83,109.78098733]
[1755548990716,0.06,183.84,183.83,111.96076433]
[1755548992615,0.06,183.84,183.83,112.67076433]
[1755548992797,0.06,183.84,183.83,111.96076433]
[1755548997026,0.06,183.86,183.84,15.10621557]
[1755548997228,0.06,183.86,183.85,58.92117884]
[1755548997720,0.06,183.86,183.85,80.50083782]
[1755548998026,0.06,183.86,183.85,81.21083782]
[1755548998720,0.06,183.86,183.85,86.65005457]
[1755549001404,0.06,183.86,183.85,85.94005457]
[1755549001606,0.06,183.86,183.85,86.65005457]
[1755549002306,0.06,183.86,183.85,84.58136785]
[1755549003217,0.06,183.88,183.87,15.10621557]
[1755549003420,0.06,183.88,183.87,72.54621555]
[1755549003726,0.06,183.88,183.87,76.1924921]
[1755549003931,0.06,183.88,183.87,76.9024921]
[1755549004139,0.2,183.89,183.87,209.6024921]
[1755549004339,1e-08,183.89,183.88,46.80104988]
[1755549004643,1e-08,183.89,183.88,47.51104988]
[1755549004842,1e-08,183.89,183.88,52.94937922]
[1755549005410,1e-08,183.89,183.88,26.94937922]
[1755549007749,1e-08,183.89,183.88,29.12820722]
[1755549008645,1e-08,183.89,183.88,28.41820722]
[1755549008825,0.72000001,183.89,183.88,28.41820722]
[1755549009026,0.72000001,183.89,183.88,111.8382072]
[1755549010552,1e-08,183.89,183.88,111.8382072]
[1755549011736,0.72000001,183.89,183.88,111.8382072]
[1755549012152,0.72000001,183.89,183.88,73.7582072]
[1755549012454,0.72000001,183.89,183.88,111.8382072]
[1755549013259,1e-08,183.89,183.88,111.8382072]
[1755549013839,0.72000001,183.89,183.88,42.06337289]
[1755549014067,0.72000001,183.89,183.88,68.55316363]
[1755549015739,1e-08,183.89,183.88,68.55316363]
[1755549016157,0.72000001,183.89,183.88,68.55316363]
[1755549016354,1e-08,183.89,183.88,68.55316363]
[1755549017051,0.72000001,183.89,183.88,68.55316363]
[1755549018259,1e-08,183.89,183.88,68.55316363]
[1755549019468,1e-08,183.89,183.88,83.6593792]
[1755549019871,1e-08,183.89,183.88,85.8385622]
[1755549021262,1e-08,183.89,183.88,85.8685622]
[1755549022067,1e-08,183.89,183.88,86.5585622]
[1755549022672,1e-08,183.89,183.88,85.8685622]
[1755549027569,1e-08,183.9,183.89,15.10621557]
[1755549027771,1e-08,183.9,183.89,15.79621557]
[1755549027973,1e-08,183.9,183.89,21.49104988]
[1755549028775,1e-08,183.9,183.89,23.66987688]
[1755549029153,1e-08,183.9,183.89,22.97987688]
[1755549029367,1e-08,183.9,183.89,28.41791048]
[1755549029567,0.72000001,183.9,183.89,54.41791048]
[1755549029776,0.72000001,183.9,183.89,88.85803358]
[1755549030094,0.72000001,183.9,183.89,94.55286789]
[1755549030257,0.72000001,183.9,183.89,62.85803358]
[1755549030455,0.72000001,183.9,183.89,68.55286789]
[1755549030683,0.72000001,183.9,183.89,57.41999998]
[1755549030992,0.72000001,183.9,183.89,19.33999998]
[1755549031167,10.07539605,183.9,183.88,0.03]
[1755549031492,3.66056173,183.89,183.88,0.03]
[1755549031791,4.38056173,183.89,183.88,0.03]
[1755549032268,10.07539604,183.89,183.88,0.03]
[1755549032458,15.51342964,183.89,183.88,0.03]
[1755549032658,19.58176829,183.89,183.88,0.03]
[1755549033604,19.58143798,183.89,183.88,0.03]
[1755549036003,15.51342964,183.89,183.88,0.03]
[1755549036310,19.58049794,183.89,183.88,0.03]
[1755549036674,14.14246434,183.89,183.88,0.03]
[1755549037004,8.44763003,183.89,183.88,0.03]
[1755549037186,4.38056173,183.89,183.88,5.72483431]
[1755549038317,0.72,183.89,183.88,11.16316365]
[1755549038486,0.72,183.89,183.88,30.50316363]
[1755549038685,1e-08,183.9,183.88,30.50316363]
[1755549039008,0.69000001,183.9,183.89,5.69483431]
[1755549039609,0.69000001,183.9,183.89,11.13286791]
[1755549041484,0.69000001,183.9,183.89,30.47286789]
[1755549042809,1e-08,183.9,183.89,30.47286789]
[1755549042998,1e-08,183.9,183.89,46.26908346]
[1755549043323,1e-08,183.9,183.89,48.44826646]
[1755549044701,1e-08,183.9,183.89,47.75826646]
[1755549045202,1e-08,183.9,183.89,48.44826646]
[1755549047015,1e-08,183.9,183.89,47.75826646]
[1755549047613,1e-08,183.9,183.89,48.44826646]
[1755549052022,0.06,183.92,183.91,41.10621557]
[1755549052225,0.06,183.92,183.91,104.20104986]
[1755549052425,0.06,183.92,183.91,110.58588417]
[1755549052739,1e-08,183.92,183.91,110.58588417]
[1755549052949,1e-08,183.92,183.91,104.89104986]
[1755549053836,1e-08,183.92,183.91,107.06975786]
[1755549054009,1e-08,183.92,183.91,112.50720008]
[1755549055034,1e-08,183.92,183.91,111.81720008]
[1755549055345,0.69000001,183.92,183.91,109.63849208]
[1755549055752,0.69000001,183.92,183.91,111.81731908]
[1755549056048,1e-08,183.92,183.91,111.81731908]
[1755549056436,0.75,183.94,183.93,5.69483431]
[1755549056635,0.75,183.94,183.93,43.75483431]
[1755549056636,0.06,183.94,183.93,43.75483431]
[1755549057142,0.06,183.94,183.93,58.86104988]
[1755549058140,0.06,183.94,183.93,64.29790085]
[1755549059246,0.75,183.94,183.93,49.19168528]
[1755549060354,6.44483431,183.94,183.89,5.43797329]
[1755549060544,10.03910079,183.93,183.89,5.43797329]
[1755549060751,4.34426648,183.92,183.89,5.43797329]
[1755549061054,0.06,183.94,183.91,5.69483431]
[1755549061259,0.69,183.93,183.92,5.69483431]
[1755549061551,0.69,183.93,183.91,5.69483431]
[1755549061759,0.69,183.93,183.9,43.75483431]
[1755549062054,0.69,183.93,183.91,5.69483431]
[1755549062363,0.69,183.93,183.91,11.13205391]
[1755549062656,0.69,183.92,183.91,11.13205391]
[1755549063038,0.06,183.94,183.91,11.13205391]
[1755549063239,0.06,183.94,183.92,38.06]
[1755549063550,0.06,183.94,183.92,43.75483431]
[1755549063954,0.69,183.93,183.92,43.75483431]
[1755549064364,0.69,183.93,183.92,49.19198089]
[1755549064537,0.69,183.93,183.92,43.49714658]
[1755549065047,4.3446062,183.93,183.89,49.19281727]
[1755549065233,0.69,183.93,183.89,43.49798296]
[1755549065437,0.69,183.93,183.89,11.13281727]
[1755549066361,3.65524671,183.92,183.89,11.13281727]
[1755549066667,0.69,183.91,183.88,68.56307099]
[1755549066836,0.69,183.91,183.88,49.22307102]
[1755549067035,0.69,183.91,183.88,43.52823671]
[1755549067445,0.69,183.91,183.88,49.22307102]
[1755549067960,0.69,183.91,183.88,43.78483431]
[1755549068262,0.69,183.91,183.88,38.09]
[1755549068962,0.69,183.91,183.88,43.52828256]
[1755549071265,0.69,183.91,183.88,0.03]
[1755549071266,6.38483431,183.91,183.88,0.03]
[1755549071450,5.69483431,183.89,183.88,0.03]
[1755549071646,9.35008102,183.89,183.88,0.03]
[1755549071856,10.07008102,183.89,183.88,0.03]
[1755549072658,14.13117279,183.89,183.88,0.03]
[1755549073454,19.56920639,183.89,183.88,0.03]
[1755549074856,34.67542196,183.89,183.88,0.03]
[1755549075053,30.61433019,183.89,183.88,0.03]
[1755549075253,34.6731166,183.89,183.88,0.03]
[1755549076065,20.80104988,183.87,183.86,0.03]
[1755549076266,66.575083,183.87,183.86,0.03]
[1755549076447,67.295083,183.87,183.86,0.03]
[1755549077362,74.91467411,183.87,183.86,0.03]
[1755549080953,74.90580154,183.87,183.86,0.03]
[1755549081149,57.61861997,183.87,183.86,0.03]
[1755549081354,57.61730835,183.87,183.86,0.03]
[1755549081561,53.56870613,183.87,183.86,0.03]
[1755549083058,72.72245355,183.87,183.86,0.03]
[1755549083258,68.6749217,183.87,183.86,0.03]
[1755549083982,70.8558877,183.87,183.86,0.03]
[1755549084154,20.54513648,183.86,183.85,0.03]
[1755549084349,30.6152175,183.86,183.85,0.03]
[1755549084765,34.66064894,183.86,183.85,0.03]
[1755549085254,30.6152175,183.86,183.85,0.03]
[1755549086376,36.17173114,183.86,183.85,0.03]
[1755549087580,36.17173114,183.86,183.84,0.03]
[1755549087581,50.21311531,183.86,183.84,0.03]
[1755549087757,46.80104988,183.84,183.83,0.03]
[1755549087955,50.45629659,183.84,183.83,0.03]
[1755549088155,15.10621557,183.83,183.81,0.03]
[1755549088378,63.25629659,183.83,183.81,0.03]
[1755549088752,67.53623849,183.83,183.81,0.03]
[1755549089186,72.976047,183.83,183.81,0.03]
[1755549089896,26.49588419,183.82,183.81,1e-08]
[1755549090176,15.10621557,183.81,183.78,0.03]
[1755549090358,66.57515697,183.8,183.78,1e-08]
[1755549090565,15.10621557,183.78,183.76,0.03]
[1755549090758,66.57515697,183.78,183.76,0.03]
[1755549090959,67.29515697,183.78,183.76,0.03]
[1755549091171,72.73644546,183.78,183.76,0.03]
[1755549091550,41.10621557,183.76,183.75,0.03]
[1755549091754,92.57259589,183.76,183.75,0.03]
[1755549091953,93.29259589,183.76,183.75,0.03]
[1755549092154,93.29259589,183.76,183.75,1e-08]
[1755549092359,97.59776158,183.76,183.71,0.03]
[1755549092564,15.10621557,183.74,183.71,0.03]
[1755549092777,62.55629659,183.74,183.71,0.03]
[1755549092985,63.27629659,183.74,183.71,0.03]
[1755549093505,41.10621557,183.72,183.71,0.03]
[1755549093783,88.57629659,183.72,183.71,0.03]
[1755549094156,89.29629659,183.72,183.71,0.03]
[1755549094556,73.47008102,183.72,183.71,0.03]
[1755549095360,78.91314655,183.72,183.71,0.03]
[1755549095564,75.25789984,183.72,183.71,0.03]
[1755549100102,69.56306553,183.72,183.71,0.03]
[1755549100275,43.81483431,183.72,183.71,0.03]
[1755549100599,69.81483431,183.72,183.71,0.75]
[1755549101667,75.25789984,183.72,183.71,0.75]
[1755549101868,69.81483431,183.72,183.71,0.75]
[1755549102072,75.25789984,183.72,183.71,0.03]
[1755549103285,78.87499786,183.72,183.71,0.03]
[1755549103890,64.12,183.72,183.71,0.75]
[1755549104080,38.12,183.72,183.71,0.75]
[1755549104914,43.81483431,183.72,183.71,0.03]
[1755549105502,38.12,183.72,183.71,0.75]
[1755549106317,5.69483431,183.74,183.71,0.75]
[1755549106479,47.43599248,183.74,183.71,0.75]
[1755549106680,43.81483431,183.74,183.72,0.72]
[1755549107075,38.12,183.74,183.72,0.72]
[1755549107587,38.12,183.74,183.73,0.72]
[1755549107908,31.69483431,183.75,183.73,0.72]
[1755549107909,38.12,183.75,183.73,0.72]
[1755549108086,4.5629397,183.8,183.73,0.72]
[1755549108087,38.12,183.76,183.73,6.41483431]
[1755549108415,38.12,183.76,183.74,0.72]
[1755549108580,38.12,183.76,183.75,0.72]
[1755549108901,41.74366067,183.76,183.75,0.72]
[1755549109084,3.62366067,183.76,183.75,0.72]
[1755549109286,9.31849498,183.77,183.73,0.72]
[1755549109495,43.83483431,183.77,183.74,0.72]
[1755549109685,3.62366067,183.76,183.74,0.72]
[1755549110403,31.69483431,183.79,183.75,0.72]
[1755549110603,3.62700224,183.78,183.76,0.72]
[1755549110911,3.62700224,183.78,183.72,5.44297231]
[1755549110912,26.0,183.79,183.77,0.72]
[1755549111818,4.30826553,183.78,183.72,0.72]
[1755549111981,43.81483431,183.77,183.72,6.41483431]
[1755549112180,43.81483431,183.77,183.72,5.69483431]
[1755549112404,3.63060234,183.76,183.73,0.72]
[1755549112606,3.63060234,183.76,183.72,5.69483431]
[1755549112817,3.63060234,183.76,183.74,0.72]
[1755549113386,3.63060234,183.76,183.72,6.41483431]
[1755549113592,10.00543665,183.76,183.72,6.41483431]
[1755549113782,3.63060234,183.76,183.73,6.41483431]
[1755549113988,3.63060234,183.76,183.74,6.41483431]
[1755549114201,3.63060234,183.76,183.75,0.72]
[1755549114903,38.12,183.77,183.75,0.72]
[1755549115117,38.12,183.77,183.75,11.85694199]
[1755549115291,38.14,183.79,183.75,11.13694199]
[1755549115617,3.63696708,183.78,183.74,5.69483431]
[1755549115911,3.63696708,183.77,183.73,6.41483431]
[1755549116108,0.68,183.78,183.73,6.41483431]
[1755549116312,3.63976389,183.77,183.73,6.41483431]
[1755549116493,3.63976389,183.77,183.74,6.41483431]
[1755549116893,3.63976389,183.77,183.75,5.69483431]
[1755549117105,3.63976389,183.76,183.73,5.69483431]
[1755549117489,38.12,183.77,183.73,6.41483431]
[1755549117704,3.64155914,183.76,183.74,0.72]
[1755549118015,3.64155914,183.76,183.72,6.16303449]
[1755549118194,0.68,183.75,183.72,5.69483431]
[1755549118389,0.68,183.74,183.71,0.03]
[1755549118600,10.01751172,183.74,183.71,0.03]
[1755549118899,4.32325666,183.73,183.71,0.03]
[1755549119206,4.32439516,183.73,183.71,0.03]
[1755549119514,0.68,183.72,183.71,0.03]
[1755549119717,6.12283157,183.73,183.71,0.03]
[1755549119926,9.76722673,183.73,183.71,0.03]
[1755549120110,0.68,183.72,183.71,0.03]
[1755549120615,11.81738153,183.74,183.71,0.03]
[1755549120818,3.64508918,183.73,183.71,0.03]
[1755549121023,11.81738153,183.74,183.71,0.03]
[1755549121214,3.64543112,183.73,183.71,0.03]
[1755549121411,11.81738153,183.74,183.71,0.03]
[1755549121595,4.32577565,183.73,183.71,0.03]
[1755549121800,11.13738153,183.74,183.71,0.03]
[1755549121801,5.69483431,183.74,183.71,0.03]
[1755549122002,3.64577494,183.73,183.72,0.72]
[1755549122223,41.76577494,183.76,183.72,6.41483431]
[1755549122408,3.64577494,183.75,183.72,6.41483431]
[1755549122609,3.64577494,183.75,183.71,0.03]
[1755549122610,3.64577494,183.75,183.73,6.41483431]
[1755549122807,3.64577494,183.75,183.74,6.41483431]
[1755549123012,3.64577494,183.75,183.74,11.85730736]
[1755549123225,3.64577494,183.76,183.74,11.85730736]
[1755549123399,3.64577494,183.76,183.75,5.69483431]
[1755549123596,3.64577494,183.76,183.74,5.69483431]
[1755549123801,3.64664397,183.76,183.75,5.69483431]
[1755549124003,3.70664397,183.77,183.75,6.41483431]
[1755549124301,0.06,183.77,183.76,6.41483431]
[1755549124502,0.06,183.77,183.75,5.69483431]
[1755549124718,3.70729155,183.77,183.75,5.69483431]
[1755549124926,4.38729155,183.77,183.75,5.69483431]
[1755549125227,0.68,183.76,183.74,19.4]
[1755549125710,3.70729155,183.77,183.74,25.09483431]
[1755549125910,3.64729155,183.76,183.74,25.09483431]
[1755549126110,3.70729155,183.77,183.74,25.09483431]
[1755549126310,3.70729155,183.77,183.74,30.5372531]
[1755549126603,3.70729155,183.77,183.75,5.69483431]
[1755549127438,3.70729155,183.77,183.74,25.09483431]
[1755549127611,0.68,183.76,183.74,25.09483431]
[1755549128335,3.70729155,183.77,183.74,25.09483431]
[1755549128625,4.36729155,183.77,183.74,25.09483431]
[1755549128828,3.70729155,183.77,183.74,31.21725661]
[1755549129008,4.36729155,183.77,183.74,25.09483431]
[1755549129432,4.36729155,183.77,183.74,30.53726692]
[1755549129433,3.70729155,183.77,183.74,30.53726692]
[1755549130622,0.06,183.77,183.75,5.69483431]
[1755549131638,0.06,183.77,183.76,6.37483431]
[1755549132720,0.06,183.77,183.76,11.81671502]
[1755549133338,0.06,183.77,183.76,31.21671502]
[1755549141038,0.06,183.77,183.76,30.53671502]
[1755549141617,0.06,183.77,183.76,31.21671502]
[1755549143011,0.06,183.77,183.76,84.46293059]
[1755549143239,0.06,183.77,183.76,78.76809628]
[1755549143435,0.06,183.77,183.76,84.46293059]
[1755549145024,0.06,183.77,183.76,68.67671502]
[1755549145218,0.06,183.77,183.76,70.85756202]
[1755549146434,0.06,183.77,183.76,71.53756202]
[1755549147332,0.06,183.77,183.76,68.67671502]
[1755549149151,0.06,183.77,183.76,62.98188071]
[1755549149360,0.72,183.77,183.76,19.4]
[1755549150264,0.72,183.77,183.74,49.27720592]
[1755549151046,0.72,183.77,183.75,5.69483431]
[1755549152368,0.06,183.77,183.76,5.69483431]
[1755549152966,0.72,183.77,183.73,0.03]
[1755549153132,6.41483431,183.77,183.73,0.03]
[1755549153537,5.69483431,183.74,183.73,0.03]
[1755549153845,9.35326607,183.74,183.73,0.03]
[1755549154028,10.01326607,183.74,183.73,0.03]
[1755549154232,15.45573912,183.74,183.73,0.03]
[1755549154732,19.52224139,183.74,183.73,0.03]
[1755549156236,53.61573912,183.74,183.73,0.03]
[1755549156476,57.68183839,183.74,183.73,0.03]
[1755549157037,57.68090083,183.74,183.73,0.03]
[1755549160342,53.61573912,183.74,183.73,0.03]
[1755549161360,42.47843176,183.74,183.73,0.03]
[1755549162062,41.81843176,183.74,183.73,0.03]
[1755549163364,0.06,183.77,183.73,25.80483431]
[1755549163538,0.06,183.77,183.76,5.69483431]
[1755549163738,0.77,183.77,183.74,5.69483431]
[1755549164156,0.77,183.77,183.73,19.43]
[1755549164157,0.71,183.76,183.73,19.43]
[1755549164363,10.05719937,183.76,183.73,19.43]
[1755549164543,0.71,183.75,183.73,19.43]
[1755549165246,3.65236506,183.76,183.73,19.43]
[1755549165758,0.71,183.75,183.73,19.43]
[1755549166070,14.78911996,183.76,183.73,19.43]
[1755549166263,0.71,183.74,183.73,19.43]
[1755549166867,6.40483431,183.74,183.73,19.43]
[1755549167237,0.71,183.74,183.73,19.43]
[1755549167433,6.40483431,183.74,183.73,19.43]
[1755549167637,11.84730736,183.74,183.73,19.43]
[1755549168233,6.40483431,183.74,183.73,19.43]
[1755549168444,6.40483431,183.74,183.73,0.03]
[1755549169865,0.71,183.74,183.73,0.03]
[1755549170056,6.40483431,183.74,183.73,0.03]
[1755549171048,11.84730736,183.74,183.73,0.03]
[1755549172397,11.13730736,183.74,183.73,0.03]
[1755549172581,11.84730736,183.74,183.73,0.03]
[1755549175682,15.49967242,183.74,183.73,0.03]
[1755549181174,15.49807607,183.74,183.73,0.03]
[1755549182090,14.78807607,183.74,183.73,0.03]
[1755549182273,53.61807607,183.74,183.73,0.03]
[1755549184192,26.0,183.72,183.71,0.03]
[1755549184370,73.46560302,183.72,183.71,0.03]
[1755549184692,73.46560302,183.72,183.7,0.03]
[1755549184693,15.10621557,183.71,183.7,0.03]
[1755549184885,29.22028834,183.71,183.7,0.03]
[1755549185497,34.66365016,183.71,183.7,0.03]
[1755549191501,30.60518041,183.71,183.7,0.03]
[1755549191800,34.66714287,183.71,183.7,0.03]
[1755549192282,34.66684371,183.71,183.7,0.03]
[1755549194701,39.23030459,183.71,183.7,0.03]
[1755549195491,23.41408902,183.71,183.7,0.03]
[1755549199310,7.71243201,183.71,183.7,0.74]
[1755549200708,3.65076871,183.71,183.7,0.74]
[1755549201085,14.78896484,183.71,183.7,0.03]
[1755549201397,56.97864971,183.71,183.7,0.03]
[1755549201897,51.28363772,183.71,183.7,0.03]
[1755549202615,51.34363772,183.71,183.7,0.03]
[1755549203526,45.9002759,183.71,183.7,0.03]
[1755549203810,3.71076871,183.71,183.7,6.43483431]
[1755549204434,3.71076871,183.71,183.7,0.03]
[1755549204889,3.71076871,183.71,183.7,0.74]
[1755549205083,3.71076871,183.71,183.7,6.43483431]
[1755549206306,3.71076871,183.71,183.7,11.87849244]
[1755549206808,0.06,183.71,183.7,31.27849244]
[1755549207388,0.06,183.71,183.7,52.07954232]
[1755549210618,0.06,183.71,183.7,46.38470801]
[1755549211222,0.06,183.71,183.7,20.14]
[1755549211519,4.40175869,183.71,183.7,0.03]
[1755549213129,10.096593,183.71,183.7,0.03]
[1755549214130,9.416593,183.71,183.7,0.03]
[1755549214512,15.53995482,183.71,183.7,0.03]
[1755549214706,19.60959378,183.71,183.7,0.03]
[1755549215881,13.48623196,183.71,183.7,0.03]
[1755549216150,19.60959378,183.71,183.7,0.03]
[1755549217330,13.48623196,183.71,183.7,0.03]
[1755549218037,18.92959378,183.71,183.7,0.03]
[1755549218341,19.61104094,183.71,183.7,0.03]
[1755549218726,13.48767912,183.71,183.7,0.03]
[1755549218921,18.93104094,183.71,183.7,0.03]
[1755549219129,19.61175637,183.71,183.7,0.03]
[1755549219836,19.61196261,183.71,183.7,0.03]
[1755549222143,44.9920198,183.71,183.7,0.03]
[1755549222342,40.41392332,183.71,183.69,0.03]
[1755549222541,61.82481499,183.7,183.69,0.03]
[1755549222741,62.50481499,183.7,183.69,0.03]
[1755549223244,67.94847312,183.7,183.69,0.03]
[1755549228234,67.94774455,183.7,183.69,0.03]
[1755549228854,67.94769973,183.7,183.69,0.03]
[1755549229226,67.94753721,183.7,183.69,0.03]
[1755549235561,68.00753721,183.7,183.69,0.03]
[1755549237265,68.00684281,183.7,183.69,0.03]
[1755549237972,68.0068068,183.7,183.69,0.03]
[1755549239359,68.0068068,183.7,183.67,0.03]
[1755549239360,15.10621557,183.69,183.67,0.03]
[1755549239541,15.10621557,183.69,183.64,0.03]
[1755549239542,26.0,183.66,183.64,0.03]
[1755549239740,82.12726962,183.66,183.64,0.03]
[1755549239942,82.80726962,183.66,183.64,0.03]
[1755549240432,38.31243531,183.66,183.64,0.03]
[1755549240651,82.12726962,183.66,183.64,0.03]
[1755549240858,83.67268903,183.66,183.64,0.03]
[1755549241056,89.73108221,183.66,183.64,0.03]
[1755549241850,83.67268903,183.66,183.64,0.03]
[1755549242638,86.51464775,183.66,183.64,0.03]
[1755549242834,85.83464775,183.66,183.64,0.03]
[1755549243057,87.56774466,183.66,183.64,0.03]
[1755549243849,88.24774466,183.66,183.64,0.03]
[1755549244248,83.67268903,183.66,183.64,0.03]
[1755549244574,92.57308231,183.66,183.64,0.03]
[1755549245355,82.44488399,183.66,183.64,0.03]
[1755549245554,86.50925386,183.66,183.64,0.03]
[1755549245961,83.66725376,183.66,183.64,0.03]
[1755549246158,88.23752696,183.66,183.64,0.03]
[1755549246364,83.6644341,183.66,183.64,0.03]
[1755549246561,88.23375792,183.66,183.64,0.03]
[1755549248049,15.10621557,183.65,183.64,0.03]
[1755549248255,33.74301648,183.65,183.64,0.03]
[1755549248468,33.74301648,183.65,183.58,0.68]
[1755549248469,26.0,183.62,183.58,0.68]
[1755549248668,5.69483431,183.59,183.58,0.68]
[1755549248871,43.83483431,183.59,183.58,0.68]
[1755549249449,47.48801702,183.59,183.56,0.68]
[1755549249751,5.69483431,183.57,183.56,0.68]
[1755549252064,4.56721054,183.65,183.56,6.37483431]
[1755549252265,5.69483431,183.62,183.57,6.12739353]
[1755549252583,5.69483431,183.61,183.58,0.68]
[1755549252774,5.69483431,183.6,183.59,0.68]
[1755549254259,3.65061684,183.61,183.59,0.68]
[1755549254462,5.69483431,183.6,183.59,0.68]
[1755549254994,5.69483431,183.6,183.57,0.68]
[1755549255207,5.69483431,183.59,183.57,0.68]
[1755549255490,5.69483431,183.58,183.57,0.68]
[1755549255869,3.65061684,183.59,183.56,0.03]
[1755549256187,5.69483431,183.57,183.56,0.03]
[1755549257588,3.65061684,183.59,183.56,0.03]
[1755549257803,38.16,183.6,183.56,0.71]
[1755549257965,43.85483431,183.6,183.56,0.71]
[1755549258165,38.16,183.6,183.56,6.40483431]
[1755549258469,38.16,183.6,183.57,0.68]
[1755549258703,5.69483431,183.61,183.57,6.12738565]
[1755549258890,5.69483431,183.61,183.57,24.84738565]
[1755549259094,5.69483431,183.59,183.57,19.4]
[1755549259989,5.69483431,183.58,183.57,19.4]
[1755549260493,9.34792218,183.58,183.57,19.4]
[1755549260681,14.79513865,183.58,183.57,19.4]
[1755549261598,9.34792218,183.58,183.57,19.4]
[1755549262462,5.69483431,183.58,183.57,19.4]
[1755549263395,5.69483431,183.58,183.56,0.03]
[1755549263580,5.69483431,183.57,183.56,0.03]
[1755549264470,9.34909315,183.58,183.56,0.03]
[1755549265395,5.69483431,183.57,183.56,0.03]
[1755549266292,9.34909315,183.57,183.56,0.03]
[1755549266487,5.69483431,183.57,183.56,0.03]
[1755549266686,9.34909315,183.57,183.56,0.03]
[1755549266870,5.69483431,183.57,183.56,0.03]
[1755549267192,9.34909315,183.57,183.56,0.03]
[1755549267493,5.69483431,183.57,183.56,0.03]
[1755549267672,9.34909315,183.57,183.56,0.03]
[1755549267866,5.69483431,183.57,183.56,0.03]
[1755549268065,9.34909315,183.57,183.56,0.03]
[1755549268297,5.69483431,183.57,183.56,0.03]
[1755549268595,9.34909315,183.57,183.56,0.03]
[1755549268896,3.65425884,183.58,183.56,0.03]
[1755549269069,9.34909315,183.57,183.56,0.03]
[1755549269268,5.69483431,183.57,183.56,0.03]
[1755549269572,9.34909315,183.57,183.56,0.03]
[1755549270699,5.69483431,183.57,183.56,0.03]
[1755549273275,9.34909315,183.57,183.56,0.03]
[1755549273480,19.51130456,183.57,183.56,0.03]
[1755549273997,39.18079118,183.57,183.56,0.03]
[1755549274879,19.51130456,183.57,183.56,0.03]
[1755549275507,57.67130456,183.57,183.56,0.03]
[1755549280302,57.02130456,183.57,183.56,0.03]
[1755549280884,57.72130456,183.57,183.56,0.03]
[1755549281080,51.57379135,183.57,183.56,0.03]
[1755549281593,47.50909315,183.57,183.56,0.03]
[1755549282287,51.57879405,183.57,183.56,0.03]
[1755549282692,45.88556802,183.57,183.56,0.72]
[1755549282894,3.65425884,183.57,183.56,6.41483431]
[1755549283409,3.65425884,183.57,183.56,0.72]
[1755549283598,3.65425884,183.57,183.56,0.03]
[1755549283797,9.34909315,183.57,183.56,0.03]
[1755549283980,7.72731075,183.57,183.56,0.03]
[1755549284188,7.72976835,183.57,183.56,0.72]
[1755549284391,3.65425884,183.57,183.56,6.16780998]
[1755549284792,3.65425884,183.57,183.56,11.86264429]